Workbook

Sheet Signals model
A1: Input variables | B1: Phase 2 | C1: Phase 4 | F1: Queue Accumulation Polygon (QAP)
A2: Arrival rate, v | B2: 500 | C2: 400 | D2: veh/hr
A3: Proportion vehicles arriving on green, P | B3: 0.5 | C3: 0.5 | G3: Phase 2 | I3: Phase 4
A4: Headway of bunched vehicles, Δ | B4: 1.5 | C4: 1.5 | D4: veh/sec | F4: Points on QAP | G4: Queue | H4: Time | I4: Queue | J4: Time
A5: Bunching factor, b | B5: 0.6 | C5: 0.6 | F5: Origin | G5: 0 | H5: 0 | I5: 0 | J5: =B42 -> 17.47896598
A6: Lost time, l1 | B6: 2 | C6: 2 | D6: sec | F6: Maximum queue | G6: =B28 -> 1.845350287 | H6: =B42 -> 17.47896598 | I6: =C28 -> 1.47628023 | J6: =J5+C42 -> 36.50221616
A7: Passage time, PT | B7: 2.5 | C7: 2.5 | D7: sec | F7: Queue at end of green | G7: =G27 -> 0 | H7: =H6+B29+B34 -> 24.50221616 | I7: =I27 -> 0 | J7: =J6+C29+C34 -> 41.98118214
A8: Detection zone length, Lds | B8: 22 | C8: 22 | D8: feet
A9: Vehicle length, Lv | B9: 20 | C9: 20 | D9: feet | F9: Display indications | G9: Queue | H9: Time | I9: Queue | J9: Time
A10: Speed, Sa | B10: 30 | C10: 30 | D10: mi/hr | F10: Red start | G10: 0.2 | H10: 0 | I10: 0.2 | J10: =J5 -> 17.47896598
A11: Maximum green, Gmax | B11: 50 | C11: 50 | D11: sec | F11: Red end | G11: 0.2 | H11: =B44-B14 -> 12.47896598 | I11: 0.2 | J11: =J10+C44 -> 33.50221616
A12: Minimum green, Gmin | B12: 5 | C12: 5 | D12: sec | F12: Green start | G12: 0.2 | H12: =H11 -> 12.47896598 | I12: 0.2 | J12: =J11 -> 33.50221616
A13: Yellow time, Y | B13: 3 | C13: 3 | D13: sec | F13: Green end | G13: 0.2 | H13: =H12+B43 -> 21.50221616 | I13: 0.2 | J13: =J12+C43 -> 40.98118214
A14: Red clearance, Rc | B14: 2 | C14: 2 | D14: sec | F14: Yellow start | G14: 0.2 | H14: =H13 -> 21.50221616
A15: Saturation flow rate, s | B15: 1900 | C15: 1900 | D15: veh/hr/green | F15: Yellow end | G15: 0.2 | H15: =H14+B13 -> 24.50221616
F16: Red clear start | G16: 0.2 | H16: =H15 -> 24.50221616
A17: Intermediate values | F17: Red clear end | G17: 0.2 | H17: =H16+B14 -> 26.50221616 | S17: 1 | U17: 0
A18: Cycle length, C | B18: 26.57304414 | C18: 26.57304414 | D18: sec
A19: Effective green, g | B19: 9.066261293 | C19: 7.506782847 | D19: sec
A20: Effective red, r | B20: 17.50678285 | C20: 19.06626129 | D20: sec | F20: Capacity calculation
F21: Effective green, g | G21: =B41 -> 9.023250176 | I21: =C41 -> 7.478965985
A22: Calculated variables | F22: Cycle length, C | G22: =B40 -> 26.50221616 | I22: =C40 -> 26.50221616
A23: Arrival rate, q | B23: =B2/3600 -> 0.1388888889 | C23: =C2/3600 -> 0.1111111111 | D23: veh/sec | F23: Saturation flow rate, s | G23: =B15 -> 1900 | I23: =C15 -> 1900
A24: Arrival rate during red, qr | B24: =qr(B3,B23,B18,B20) -> 0.1054077327 | C24: =qr(C3,C23,C18,C20) -> 0.07742893099 | D24: veh/sec | F24: Capacity, c | G24: =(G21/G22)*G23 -> 646.8959135 | I24: =(I21/I22)*I23 -> 536.1829096
A25: Arrival rate during green, qg | B25: =qg(B3,B23,B18,B19) -> 0.2035403821 | C25: =qg(C3,C23,C18,C19) -> 0.1966595092 | D25: veh/sec | F25: Arrival rate, v | G25: =B2 -> 500 | I25: =C2 -> 400
A26: Proportion of free vehicles, ϕ | B26: =_xludf.phi(B5,B4,B23) -> 0.8824969026 | C26: =_xludf.phi(C5,C4,C23) -> 0.904837418 | F26: Degree of saturation | G26: =G25/G24 -> 0.7729218713 | I26: =I25/I24 -> 0.74601408
A27: Flow rate parameter, λ | B27: =lambda(B26,B23,B4) -> 0.154824018 | C27: =lambda(C26,C23,C4) -> 0.1206449891 | D27: veh/sec | F27: Queue at end of green | G27: =QueueAtEndOfGreen(B28,B15,B25,B11,B29,B34,B6) -> 0 | I27: =QueueAtEndOfGreen(C28,C15,C25,C11,C29,C34,C6) -> 0
A28: Queue at end of red, Qr | B28: =B24*B20 -> 1.845350287 | C28: =C24*C20 -> 1.47628023 | D28: veh | F28: Uniform delay, sec/veh | G28: =UniformDelay(B2,B42,B29,B28,G27,B34,G22) -> 5.80806122 | I28: =UniformDelay(C2,C42,C29,C28,I27,C34,I22) -> 5.886118464
A29: Queue service time, gs | B29: =QueueServiceTime(B23,B18,B3,B15,B19,B6,B11,B34) -> 5.691355506 | C29: =QueueServiceTime(C23,C18,C3,C15,C19,C6,C11,C34) -> 4.458468076 | D29: sec
A30: Number of extension before max out, n | B30: =NumberExtensionsBeforeMaxOut(B23,B11,B29,B6) -> 5.876200624 | C30: =NumberExtensionsBeforeMaxOut(C23,C11,C29,C6) -> 4.837947992 | F30: Time calculations | G30: Y-axis | H30: X-axis | I30: Y-axis | J30: X-axis
A31: ProbSubjectPhaseCalled, pv | B31: =ProbSubjectPhaseCalled(B23,B18) -> 0.9750454866 | C31: =ProbSubjectPhaseCalled(C23,C18) -> 0.9477941363 | F31: Red and Phase Duration
A32: MAH | B32: =MAH(B7,B8,B9,B10) -> 3.452380952 | C32: =MAH(C7,C8,C9,C10) -> 3.452380952 | D32: sec | F32: Red display | G32: 3 | H32: 0 | I32: 3
A33: ProbGreenExtension, p | B33: =ProbGreenExtension(B26,B27,B32,B4) -> 0.347716153 | C33: =ProbGreenExtension(C26,C27,C32,C4) -> 0.2850516514 | G33: 3 | H33: =H32+B44-B14 -> 12.47896598 | I33: 3
A34: Green extension, ge | B34: =GreenExtension(B33,B30,B23) -> 1.331894669 | C34: =GreenExtension(C33,C30,C23) -> 1.020497909 | D34: sec | F34: Green display | G34: 3 | H34: =H33 -> 12.47896598 | I34: 3
A35: Effective change interval, Y + Rc | B35: =B13+B14 -> 5 | C35: =C13+C14 -> 5 | D35: sec | G35: 3 | H35: =H34+B43 -> 21.50221616 | I35: 3
A36: Average green interval duration, G | B36: =AvgGreenDuration(B12,B11,B6,B29,B34) -> 9.023250176 | C36: =AvgGreenDuration(C12,C11,C6,C29,C34) -> 7.478965985 | D36: sec | F36: Yellow display | G36: 3 | H36: =H35 -> 21.50221616
A37: Phase duration, Dp | B37: =B36+B13+B14 -> 14.02325018 | C37: =C36+C13+C14 -> 12.47896598 | D37: sec | G37: 3 | H37: =H36+B13 -> 24.50221616
F38: Red clearance display | G38: 3 | H38: =H37 -> 24.50221616
A39: Final values | G39: 3 | H39: =H38+B14 -> 26.50221616
A40: Cycle length, C | B40: 26.50221616 | C40: 26.50221616 | D40: sec | F40: Cycle length | G40: 4 | H40: 0
A41: Effective green, g | B41: 9.023250176 | C41: 7.478965985 | D41: sec | G41: 4 | H41: =B40 -> 26.50221616
A42: Effective red, r | B42: 17.47896598 | C42: 19.02325018 | D42: sec | F42: Phase duration | G42: 3.2 | H42: =H34 -> 12.47896598
A43: Displayed green, G | B43: =B6+B29+B34 -> 9.023250176 | C43: =C6+C29+C34 -> 7.478965985 | D43: sec | G43: 3.2 | H43: =H39 -> 26.50221616
A44: Displayed red, R | B44: =B40-B43-B13 -> 14.47896598 | C44: =C40-C43-C13 -> 16.02325018 | D44: sec
A45: Displayed yellow, Y | B45: =B13 -> 3 | C45: =C13 -> 3 | D45: sec | F45: Effective times
F46: Effective red1 | G46: 2 | H46: 0
G47: 2 | H47: =H46+B42 -> 17.47896598
F48: Effective green | G48: 2 | H48: =H47 -> 17.47896598
G49: 2 | H49: =H48+B41 -> 26.50221616
F50: Effective red2 | G50: 2 | H50: =H49 -> 26.50221616
G51: 2 | H51: =H50+B13+B14-2 -> 29.50221616
F53: Phase duration components
F54: Lost time, l1 | G54: 1 | H54: =B44 -> 14.47896598
G55: 1 | H55: =H54+B6 -> 16.47896598
F56: Green service time, gs | G56: 1 | H56: =H55 -> 16.47896598
G57: 1 | H57: =H56+B29 -> 22.17032149
F58: Green extension time, ge | G58: 1 | H58: =H57 -> 22.17032149
G59: 1 | H59: =H58+B34 -> 23.50221616
F60: Y+Rc | G60: 1 | H60: =H59 -> 23.50221616
G61: 1 | H61: =H60+B13+B14 -> 28.50221616
